[Event "*** Titled Tuesday Blitz"]
[Site "Chess.com"]
[Date "2021.04.27"]
[Round "9"]
[White "fyall777"]
[Black "CraiggoryC"]
[Result "1-0"]
[WhiteElo "2410"]
[BlackElo "2231"]
[TimeControl "180+1"]
[EndTime "11:39:30 PDT"]
[Termination "fyall777 won by resignation"]

1. f4 {[%clk 0:03:00.9]} 1... Nf6 {[%clk 0:02:58.3]} 2. Nf3 {[%clk 0:03:00.9]}
2... g6 {[%clk 0:02:58.9]} 3. g3 {[%clk 0:03:00.5]} 3... Bg7 {[%clk 0:02:59.5]}
4. Bg2 {[%clk 0:03:01.1]} 4... O-O {[%clk 0:02:59.9]} 5. O-O {[%clk 0:03:02]}
5... c5 {[%clk 0:02:59.7]} 6. d3 {[%clk 0:03:02.5]} 6... Nc6 {[%clk 0:02:59.3]}
7. Nc3 {[%clk 0:03:00.8]} 7... d6 {[%clk 0:02:59.6]} 8. e4 {[%clk 0:03:00.6]}
8... Ne8 {[%clk 0:02:58.3]} 9. f5 {[%clk 0:02:59.4]} 9... Nd4 {[%clk 0:02:53.6]}
10. Nxd4 {[%clk 0:02:57.3]} 10... cxd4 {[%clk 0:02:53.5]} 11. Nd5 {[%clk
0:02:53.4]} 11... Nc7 {[%clk 0:02:53.2]} 12. Nxc7 {[%clk 0:02:44.9]} 12... Qxc7
{[%clk 0:02:53.4]} 13. Bg5 {[%clk 0:02:44.9]} 13... b6 {[%clk 0:02:24.4]} 14.
Qd2 {[%clk 0:02:42.5]} 14... gxf5 {[%clk 0:02:18.9]} 15. exf5 {[%clk 0:02:35.6]}
15... Bb7 {[%clk 0:02:19.2]} 16. Bxb7 {[%clk 0:02:24]} 16... Qxb7 {[%clk
0:02:19]} 17. f6 {[%clk 0:02:20]} 17... exf6 {[%clk 0:02:13.9]} 18. Bxf6 {[%clk
0:02:19.9]} 18... Bxf6 {[%clk 0:02:12.3]} 19. Rxf6 {[%clk 0:02:15.9]} 19... Rae8
{[%clk 0:02:03.7]} 20. Qf4 {[%clk 0:01:59.5]} 20... Kh8 {[%clk 0:01:51.4]} 21.
Qxd4 {[%clk 0:01:54]} 21... Re2 {[%clk 0:01:46]} 22. Rxf7+ {[%clk 0:01:51.2]}
1-0

[Event "*** Titled Tuesday Blitz"]
[Site "Chess.com"]
[Date "2021.04.27"]
[Round "9"]
[White "Guzman70"]
[Black "ljuks68"]
[Result "0-1"]
[WhiteElo "2297"]
[BlackElo "2445"]
[TimeControl "180+1"]
[EndTime "11:39:42 PDT"]
[Termination "ljuks68 won by resignation"]

1. Nf3 {[%clk 0:03:00.9]} 1... d5 {[%clk 0:02:54.4]} 2. g3 {[%clk 0:02:58]} 2...
Nc6 {[%clk 0:02:52]} 3. Bg2 {[%clk 0:02:56.5]} 3... e5 {[%clk 0:02:47.9]} 4. d3
{[%clk 0:02:47.9]} 4... Bg4 {[%clk 0:02:40.6]} 5. c4 {[%clk 0:02:40.8]} 5...
dxc4 {[%clk 0:02:36.8]} 6. Qa4 {[%clk 0:02:40.7]} 6... Qd7 {[%clk 0:02:36]} 7.
Qxc4 {[%clk 0:02:30.2]} 7... O-O-O {[%clk 0:02:30]} 8. h3 {[%clk 0:02:28.1]}
8... Be6 {[%clk 0:02:23.2]} 9. Qa4 {[%clk 0:02:21.1]} 9... f6 {[%clk 0:02:16.2]}
10. Nc3 {[%clk 0:02:14]} 10... Kb8 {[%clk 0:02:11.2]} 11. Be3 {[%clk 0:02:05.9]}
11... Nge7 {[%clk 0:01:56.8]} 12. b4 {[%clk 0:01:55.1]} 12... Nc8 {[%clk
0:01:44.8]} 13. b5 {[%clk 0:01:52.8]} 13... Nd4 {[%clk 0:01:42.9]} 14. Bxd4
{[%clk 0:01:41.7]} 14... exd4 {[%clk 0:01:42.2]} 15. Ne4 {[%clk 0:01:41.9]}
15... Nb6 {[%clk 0:01:34.9]} 16. Qxa7+ {[%clk 0:01:36.5]} 0-1

[Event "*** Titled Tuesday Blitz"]
[Site "Chess.com"]
[Date "2021.04.27"]
[Round "9"]
[White "pavelalexandru07"]
[Black "DonBroca"]
[Result "0-1"]
[WhiteElo "2328"]
[BlackElo "2235"]
[TimeControl "180+1"]
[EndTime "11:40:08 PDT"]
[Termination "DonBroca won by resignation"]

1. e4 {[%clk 0:02:56.8]} 1... c5 {[%clk 0:02:48.7]} 2. Nf3 {[%clk 0:02:54.1]}
2... d6 {[%clk 0:02:48.3]} 3. d4 {[%clk 0:02:54.5]} 3... cxd4 {[%clk 0:02:49.1]}
4. Nxd4 {[%clk 0:02:55.2]} 4... Nf6 {[%clk 0:02:47]} 5. Nc3 {[%clk 0:02:55.8]}
5... g6 {[%clk 0:02:47.9]} 6. Be3 {[%clk 0:02:52.1]} 6... Bg7 {[%clk 0:02:47.1]}
7. f3 {[%clk 0:02:52.2]} 7... Nc6 {[%clk 0:02:47.5]} 8. Qd2 {[%clk 0:02:52.5]}
8... O-O {[%clk 0:02:46.8]} 9. O-O-O {[%clk 0:02:52.6]} 9... d5 {[%clk 0:02:47]}
10. Nxc6 {[%clk 0:02:53]} 10... bxc6 {[%clk 0:02:47.1]} 11. Bh6 {[%clk
0:02:53.7]} 11... Qa5 {[%clk 0:02:30]} 12. h4 {[%clk 0:02:20.7]} 12... dxe4
{[%clk 0:02:19.3]} 13. h5 {[%clk 0:02:20.4]} 13... Bxh6 {[%clk 0:01:34]} 14.
Qxh6 {[%clk 0:02:18.5]} 14... g5 {[%clk 0:01:34.2]} 15. fxe4 {[%clk 0:01:56.9]}
15... Be6 {[%clk 0:01:03.5]} 16. Bd3 {[%clk 0:01:49.7]} 16... Ng4 {[%clk
0:00:56.5]} 0-1

[Event "*** Titled Tuesday Blitz"]
[Site "Chess.com"]
[Date "2021.04.27"]
[Round "9"]
[White "david_alex"]
[Black "Kolle05"]
[Result "0-1"]
[WhiteElo "2118"]
[BlackElo "2323"]
[TimeControl "180+1"]
[EndTime "11:40:23 PDT"]
[Termination "Kolle05 won by resignation"]

1. d4 {[%clk 0:03:00.9]} 1... Nf6 {[%clk 0:02:57.5]} 2. Nf3 {[%clk 0:03:01.1]}
2... g6 {[%clk 0:02:56]} 3. g3 {[%clk 0:03:00.7]} 3... Bg7 {[%clk 0:02:56.2]} 4.
Bg2 {[%clk 0:02:57.9]} 4... O-O {[%clk 0:02:56.4]} 5. O-O {[%clk 0:02:57]} 5...
d6 {[%clk 0:02:56.5]} 6. b3 {[%clk 0:02:56]} 6... Nbd7 {[%clk 0:02:51.7]} 7. Bb2
{[%clk 0:02:56.3]} 7... c6 {[%clk 0:02:51.9]} 8. c4 {[%clk 0:02:53.9]} 8... Qc7
{[%clk 0:02:51.1]} 9. Re1 {[%clk 0:02:53.7]} 9... Re8 {[%clk 0:02:49.9]} 10. e4
{[%clk 0:02:54]} 10... e5 {[%clk 0:02:49.5]} 11. Nc3 {[%clk 0:02:44]} 11... exd4
{[%clk 0:02:38.8]} 12. Nxd4 {[%clk 0:02:44.9]} 12... a5 {[%clk 0:02:37]} 13. Qd2
{[%clk 0:02:41.9]} 13... Nc5 {[%clk 0:02:35.4]} 14. Rad1 {[%clk 0:02:39.4]}
14... Bg4 {[%clk 0:02:21.3]} 15. f3 {[%clk 0:02:38.5]} 15... Bd7 {[%clk
0:02:21.3]} 16. Nde2 {[%clk 0:02:30.9]} 16... Rad8 {[%clk 0:02:11.7]} 17. Qxd6
{[%clk 0:02:29.7]} 17... Qb6 {[%clk 0:02:11.5]} 18. Kh1 {[%clk 0:02:04.4]} 18...
Be6 {[%clk 0:01:53.6]} 19. Qf4 {[%clk 0:01:47.6]} 19... Nd3 {[%clk 0:01:47.1]}
20. Na4 {[%clk 0:01:29.1]} 20... Nf2+ {[%clk 0:01:41.4]} 21. Kg1 {[%clk
0:01:19]} 21... Nh3+ {[%clk 0:01:41.2]} 22. Kh1 {[%clk 0:01:09]} 22... Qg1+
{[%clk 0:01:39.1]} 0-1

[Event "*** Titled Tuesday Blitz"]
[Site "Chess.com"]
[Date "2021.04.27"]
[Round "9"]
[White "MFBerna"]
[Black "Srisshhhtea"]
[Result "0-1"]
[WhiteElo "2441"]
[BlackElo "2352"]
[TimeControl "180+1"]
[EndTime "11:40:43 PDT"]
[Termination "Srisshhhtea won by resignation"]

1. e4 {[%clk 0:03:00.9]} 1... e6 {[%clk 0:02:59.7]} 2. d4 {[%clk 0:02:59.6]}
2... d5 {[%clk 0:03:00.3]} 3. Nd2 {[%clk 0:02:59]} 3... Nc6 {[%clk 0:02:59.5]}
4. Ngf3 {[%clk 0:02:58.8]} 4... Nf6 {[%clk 0:02:58.4]} 5. e5 {[%clk 0:02:52.2]}
5... Nd7 {[%clk 0:02:58.9]} 6. c3 {[%clk 0:02:42.6]} 6... f6 {[%clk 0:02:59.3]}
7. exf6 {[%clk 0:02:40.3]} 7... Qxf6 {[%clk 0:02:59.2]} 8. Bd3 {[%clk
0:02:39.4]} 8... Bd6 {[%clk 0:02:58.6]} 9. O-O {[%clk 0:02:38.2]} 9... O-O
{[%clk 0:02:57.7]} 10. Bb5 {[%clk 0:02:34.3]} 10... e5 {[%clk 0:02:57]} 11. Bxc6
{[%clk 0:02:31.9]} 11... bxc6 {[%clk 0:02:57.9]} 12. dxe5 {[%clk 0:02:31.9]}
12... Nxe5 {[%clk 0:02:56.8]} 13. Nxe5 {[%clk 0:02:28.2]} 13... Qxe5 {[%clk
0:02:56.7]} 14. g3 {[%clk 0:02:27.7]} 14... Bh3 {[%clk 0:02:54.5]} 15. Re1
{[%clk 0:02:17.8]} 15... Qf5 {[%clk 0:02:53.8]} 16. f3 {[%clk 0:02:07.1]} 16...
Qg6 {[%clk 0:02:34.4]} 17. Kh1 {[%clk 0:01:54.4]} 17... Rae8 {[%clk 0:02:21.9]}
18. Rxe8 {[%clk 0:01:31.5]} 18... Rxe8 {[%clk 0:02:22.8]} 19. Nf1 {[%clk
0:01:26.6]} 19... Re6 {[%clk 0:02:14.9]} 20. Bd2 {[%clk 0:01:14.6]} 20... Qe8
{[%clk 0:02:10.2]} 21. Qa4 {[%clk 0:00:40.6]} 21... Re2 {[%clk 0:02:00.8]} 22.
Bf4 {[%clk 0:00:33.8]} 22... Bg2+ {[%clk 0:01:59.4]} 23. Kg1 {[%clk 0:00:33.4]}
23... Bc5+ {[%clk 0:01:58.9]} 0-1

[Event "*** Titled Tuesday Blitz"]
[Site "Chess.com"]
[Date "2021.04.27"]
[Round "9"]
[White "RafalBRC"]
[Black "OlifantCZ"]
[Result "1-0"]
[WhiteElo "2187"]
[BlackElo "2253"]
[TimeControl "180+1"]
[EndTime "11:41:05 PDT"]
[Termination "RafalBRC won by resignation"]

1. d4 {[%clk 0:02:58.2]} 1... Nf6 {[%clk 0:02:59.1]} 2. c4 {[%clk 0:02:58.7]}
2... g6 {[%clk 0:02:59.7]} 3. Nc3 {[%clk 0:02:59.3]} 3... Bg7 {[%clk 0:03:00.1]}
4. Bg5 {[%clk 0:02:59.8]} 4... O-O {[%clk 0:02:58.5]} 5. Nf3 {[%clk 0:02:59.8]}
5... c5 {[%clk 0:02:58.1]} 6. e3 {[%clk 0:02:59]} 6... cxd4 {[%clk 0:02:57.7]}
7. Nxd4 {[%clk 0:02:59.9]} 7... Nc6 {[%clk 0:02:56.3]} 8. Be2 {[%clk 0:02:57.5]}
8... Qa5 {[%clk 0:02:55.5]} 9. Bxf6 {[%clk 0:02:21.8]} 9... Bxf6 {[%clk
0:02:54.1]} 10. O-O {[%clk 0:02:22.7]} 10... d6 {[%clk 0:02:50.5]} 11. Bf3
{[%clk 0:02:22]} 11... Bd7 {[%clk 0:02:48.3]} 12. Nd5 {[%clk 0:02:21]} 12...
Bxd4 {[%clk 0:02:41.2]} 13. exd4 {[%clk 0:02:20.8]} 13... Qd8 {[%clk 0:02:38.7]}
14. a3 {[%clk 0:02:16.6]} 14... e6 {[%clk 0:02:35.8]} 15. Nc3 {[%clk 0:02:16.1]}
15... Rb8 {[%clk 0:02:34]} 16. b4 {[%clk 0:02:15.4]} 16... Qf6 {[%clk
0:02:29.9]} 17. Nb5 {[%clk 0:01:57.9]} 17... a6 {[%clk 0:02:28.3]} 18. Bxc6
{[%clk 0:01:52.2]} 18... Bxc6 {[%clk 0:02:27]} 19. Nxd6 {[%clk 0:01:52.8]} 19...
Qg5 {[%clk 0:02:10.1]} 20. f3 {[%clk 0:01:40.4]} 20... h5 {[%clk 0:02:09]} 21.
Ne4 {[%clk 0:01:35.9]} 21... Bxe4 {[%clk 0:02:05.8]} 22. fxe4 {[%clk 0:01:35.4]}
22... Qe3+ {[%clk 0:02:05.9]} 23. Kh1 {[%clk 0:01:33.5]} 23... Qxe4 {[%clk
0:02:06.2]} 24. Qd2 {[%clk 0:01:31.4]} 24... Rbc8 {[%clk 0:02:02.1]} 25. c5
{[%clk 0:01:24.4]} 25... Rcd8 {[%clk 0:01:58.6]} 26. Rad1 {[%clk 0:01:23.6]}
26... Rd5 {[%clk 0:01:58.1]} 27. Rf4 {[%clk 0:01:18.8]} 1-0

[Event "*** Titled Tuesday Blitz"]
[Site "Chess.com"]
[Date "2021.04.27"]
[Round "9"]
[White "gxbg2000"]
[Black "WonderChampion"]
[Result "1/2-1/2"]
[WhiteElo "1964"]
[BlackElo "2092"]
[TimeControl "180+1"]
[EndTime "11:41:18 PDT"]
[Termination "Game drawn by repetition"]

1. e4 {[%clk 0:03:00.9]} 1... c5 {[%clk 0:02:58.7]} 2. f4 {[%clk 0:02:59.4]}
2... g6 {[%clk 0:02:51]} 3. c3 {[%clk 0:02:58.8]} 3... Nf6 {[%clk 0:02:49.8]} 4.
d3 {[%clk 0:02:59.4]} 4... Bg7 {[%clk 0:02:49.2]} 5. Nf3 {[%clk 0:02:59.9]} 5...
O-O {[%clk 0:02:48.5]} 6. Be2 {[%clk 0:02:59.6]} 6... d6 {[%clk 0:02:45.8]} 7.
O-O {[%clk 0:02:59.3]} 7... Bd7 {[%clk 0:02:43.1]} 8. Bd2 {[%clk 0:02:58.7]}
8... Nc6 {[%clk 0:02:41.4]} 9. Be1 {[%clk 0:02:58.8]} 9... a6 {[%clk 0:02:40.4]}
10. Nbd2 {[%clk 0:02:58.3]} 10... b5 {[%clk 0:02:34.1]} 11. h3 {[%clk
0:02:58.3]} 11... Rb8 {[%clk 0:02:25.3]} 12. Bh4 {[%clk 0:02:56.8]} 12... a5
{[%clk 0:02:17.2]} 13. a3 {[%clk 0:02:56.2]} 13... b4 {[%clk 0:02:15.2]} 14.
axb4 {[%clk 0:02:55.8]} 14... axb4 {[%clk 0:02:16.1]} 15. Qc2 {[%clk 0:02:56]}
15... bxc3 {[%clk 0:02:15.9]} 16. bxc3 {[%clk 0:02:55.7]} 16... Qc7 {[%clk
0:02:13.8]} 17. Bg3 {[%clk 0:02:53.4]} 17... Be6 {[%clk 0:02:12.3]} 18. Rfb1
{[%clk 0:02:51.2]} 18... Rxb1+ {[%clk 0:02:09.9]} 19. Rxb1 {[%clk 0:02:50.8]}
19... Nh5 {[%clk 0:02:05.6]} 20. Bh2 {[%clk 0:02:50]} 20... Na5 {[%clk
0:02:01.8]} 21. Ng5 {[%clk 0:02:49]} 21... Bb3 {[%clk 0:01:56.5]} 22. Nxb3
{[%clk 0:02:47]} 22... Nxb3 {[%clk 0:01:24.3]} 23. Qxb3 {[%clk 0:02:46.3]} 23...
e6 {[%clk 0:01:20.6]} 24. Bxh5 {[%clk 0:02:40.4]} 24... gxh5 {[%clk 0:01:16.9]}
25. Bg3 {[%clk 0:02:39.2]} 25... h6 {[%clk 0:01:12.5]} 26. Nf3 {[%clk
0:02:38.6]} 26... Bf6 {[%clk 0:01:11.4]} 27. h4 {[%clk 0:02:36.4]} 27... Qd7
{[%clk 0:01:09.6]} 28. Qb7 {[%clk 0:02:32]} 28... Qa4 {[%clk 0:01:06.6]} 29. Qb3
{[%clk 0:02:29.7]} 29... Qa5 {[%clk 0:01:05.7]} 30. Bf2 {[%clk 0:02:23.4]} 30...
Ra8 {[%clk 0:01:03.5]} 31. e5 {[%clk 0:02:20.1]} 31... dxe5 {[%clk 0:01:02.6]}
32. Nxe5 {[%clk 0:02:19.8]} 32... Bg7 {[%clk 0:01:00.1]} 33. d4 {[%clk 0:02:13]}
33... cxd4 {[%clk 0:00:59.3]} 34. Bxd4 {[%clk 0:02:12.4]} 34... Bf6 {[%clk
0:00:58.4]} 35. g3 {[%clk 0:02:05.8]} 35... Qa6 {[%clk 0:00:56.6]} 36. Qc4
{[%clk 0:01:58.8]} 36... Bxe5 {[%clk 0:00:53]} 37. Qxa6 {[%clk 0:01:57.8]} 37...
Bxd4+ {[%clk 0:00:53]} 38. cxd4 {[%clk 0:01:56.6]} 38... Rxa6 {[%clk 0:00:53.6]}
39. Kf2 {[%clk 0:01:56.7]} 39... Kg7 {[%clk 0:00:53.8]} 40. Kf3 {[%clk
0:01:55.3]} 40... Ra3+ {[%clk 0:00:53.7]} 41. Kf2 {[%clk 0:01:54.7]} 41... Ra2+
{[%clk 0:00:53.3]} 42. Kf3 {[%clk 0:01:54.5]} 42... Ra3+ {[%clk 0:00:53.7]} 43.
Kg2 {[%clk 0:01:54.2]} 43... Ra2+ {[%clk 0:00:53.7]} 44. Kf3 {[%clk 0:01:53.8]}
44... Ra3+ {[%clk 0:00:53.9]} 1/2-1/2

[Event "*** Titled Tuesday Blitz"]
[Site "Chess.com"]
[Date "2021.04.27"]
[Round "9"]
[White "WildBizon"]
[Black "Forantes"]
[Result "1-0"]
[WhiteElo "2673"]
[BlackElo "2508"]
[TimeControl "180+1"]
[EndTime "11:41:21 PDT"]
[Termination "WildBizon won on time"]

1. e4 {[%clk 0:03:00.9]} 1... c5 {[%clk 0:02:59.5]} 2. Nc3 {[%clk 0:02:58.9]}
2... g6 {[%clk 0:02:59.2]} 3. d4 {[%clk 0:02:57.4]} 3... cxd4 {[%clk 0:02:59.5]}
4. Qxd4 {[%clk 0:02:57.7]} 4... Nf6 {[%clk 0:02:59.8]} 5. Nf3 {[%clk 0:02:55.6]}
5... Bg7 {[%clk 0:02:59.8]} 6. e5 {[%clk 0:02:55.2]} 6... Nc6 {[%clk 0:02:59.4]}
7. Qh4 {[%clk 0:02:50]} 7... Ng8 {[%clk 0:02:59.3]} 8. Bf4 {[%clk 0:02:46.2]}
8... h5 {[%clk 0:02:20.9]} 9. O-O-O {[%clk 0:02:42.8]} 9... Nh6 {[%clk 0:02:21]}
10. Bd3 {[%clk 0:02:41.8]} 10... O-O {[%clk 0:02:12.3]} 11. h3 {[%clk
0:02:34.6]} 11... d5 {[%clk 0:01:35.6]} 12. g4 {[%clk 0:02:05.3]} 12... e6
{[%clk 0:01:35.1]} 13. Bg5 {[%clk 0:02:00.6]} 13... Qc7 {[%clk 0:00:59.5]} 14.
gxh5 {[%clk 0:01:54.7]} 14... Nxe5 {[%clk 0:00:31.2]} 15. Nxe5 {[%clk
0:01:46.7]} 15... Qxe5 {[%clk 0:00:28.9]} 16. hxg6 {[%clk 0:01:39.6]} 16... fxg6
{[%clk 0:00:04.9]} 17. Bxh6 {[%clk 0:01:31.5]} 1-0

[Event "*** Titled Tuesday Blitz"]
[Site "Chess.com"]
[Date "2021.04.27"]
[Round "9"]
[White "Harald_Schmidt"]
[Black "szachuspl"]
[Result "0-1"]
[WhiteElo "2306"]
[BlackElo "2525"]
[TimeControl "180+1"]
[EndTime "11:41:30 PDT"]
[Termination "szachuspl won on time"]

1. e4 {[%clk 0:02:58.5]} 1... d5 {[%clk 0:02:59.8]} 2. exd5 {[%clk 0:02:55.8]}
2... Nf6 {[%clk 0:02:59.6]} 3. b3 {[%clk 0:02:52.4]} 3... Nxd5 {[%clk
0:02:59.2]} 4. Bb2 {[%clk 0:02:48]} 4... c5 {[%clk 0:02:59]} 5. Nc3 {[%clk
0:02:39.9]} 5... Nc6 {[%clk 0:02:58.5]} 6. g3 {[%clk 0:02:35.8]} 6... Nxc3
{[%clk 0:02:55.3]} 7. Bxc3 {[%clk 0:02:33.1]} 7... Qd5 {[%clk 0:02:55.4]} 8. Qf3
{[%clk 0:02:24.3]} 8... Qxf3 {[%clk 0:02:51.9]} 9. Nxf3 {[%clk 0:02:19.3]} 9...
Bf5 {[%clk 0:02:51.7]} 10. O-O-O {[%clk 0:01:58.2]} 10... O-O-O {[%clk
0:02:39.8]} 11. Bg2 {[%clk 0:01:54.5]} 11... f6 {[%clk 0:02:38.9]} 12. Nh4
{[%clk 0:01:36.6]} 12... Bd7 {[%clk 0:02:37]} 13. f4 {[%clk 0:01:33]} 13... e6
{[%clk 0:02:32.1]} 14. Rhe1 {[%clk 0:01:30.5]} 14... Bd6 {[%clk 0:02:31.9]} 15.
Re3 {[%clk 0:01:17.3]} 15... Nb4 {[%clk 0:02:32.1]} 16. Bxb4 {[%clk 0:01:06]}
16... cxb4 {[%clk 0:02:33]} 17. Bh3 {[%clk 0:01:00]} 17... Rhe8 {[%clk
0:02:25.1]} 18. Rde1 {[%clk 0:00:59.2]} 18... f5 {[%clk 0:02:22.3]} 19. Nf3
{[%clk 0:00:53.1]} 19... Bc5 {[%clk 0:02:16]} 20. R3e2 {[%clk 0:00:50]} 20... g6
{[%clk 0:02:08.9]} 21. Ne5 {[%clk 0:00:43.6]} 21... Re7 {[%clk 0:02:09]} 22. Bg2
{[%clk 0:00:38.6]} 22... Be8 {[%clk 0:02:06.9]} 23. Nd3 {[%clk 0:00:23.2]} 23...
Bd6 {[%clk 0:02:03.1]} 24. Rxe6 {[%clk 0:00:20.1]} 24... Rxe6 {[%clk 0:02:03.1]}
25. Rxe6 {[%clk 0:00:16.3]} 25... Bf7 {[%clk 0:02:03.8]} 26. Re2 {[%clk
0:00:10.6]} 26... b6 {[%clk 0:02:03.8]} 27. Ne5 {[%clk 0:00:05.2]} 27... Be8
{[%clk 0:02:04.1]} 28. c3 {[%clk 0:00:04.2]} 28... bxc3 {[%clk 0:02:03.4]} 29.
dxc3 {[%clk 0:00:00.9]} 29... Ba3+ {[%clk 0:02:04.3]} 0-1

[Event "*** Titled Tuesday Blitz"]
[Site "Chess.com"]
[Date "2021.04.27"]
[Round "9"]
[White "Abdimalik_Abdisalimov"]
[Black "poppy73"]
[Result "0-1"]
[WhiteElo "2311"]
[BlackElo "2194"]
[TimeControl "180+1"]
[EndTime "11:41:38 PDT"]
[Termination "poppy73 won by checkmate"]

1. d4 {[%clk 0:03:00.9]} 1... Nf6 {[%clk 0:02:58.2]} 2. c4 {[%clk 0:03:00.8]}
2... g6 {[%clk 0:02:57.9]} 3. f3 {[%clk 0:03:00.8]} 3... Bg7 {[%clk 0:02:57.8]}
4. e4 {[%clk 0:03:01]} 4... d6 {[%clk 0:02:58.4]} 5. Nc3 {[%clk 0:03:00.4]} 5...
O-O {[%clk 0:02:54.3]} 6. Nge2 {[%clk 0:03:00]} 6... c5 {[%clk 0:02:53.9]} 7. d5
{[%clk 0:02:58.7]} 7... Nbd7 {[%clk 0:02:50.4]} 8. Be3 {[%clk 0:02:58.9]} 8...
h5 {[%clk 0:02:40.1]} 9. Ng3 {[%clk 0:02:52.2]} 9... h4 {[%clk 0:02:33.6]} 10.
Nge2 {[%clk 0:02:51.2]} 10... Ne5 {[%clk 0:02:33.6]} 11. Nc1 {[%clk 0:02:22.3]}
11... Nh5 {[%clk 0:02:30.3]} 12. Be2 {[%clk 0:02:16.5]} 12... f5 {[%clk
0:02:11.8]} 13. O-O {[%clk 0:02:00]} 13... f4 {[%clk 0:02:05.6]} 14. Bf2 {[%clk
0:01:59.4]} 14... h3 {[%clk 0:02:01.5]} 15. Qc2 {[%clk 0:01:36.6]} 15... e6
{[%clk 0:01:40.3]} 16. b3 {[%clk 0:01:25.1]} 16... Qg5 {[%clk 0:01:36.9]} 17. g4
{[%clk 0:00:56.5]} 17... fxg3 {[%clk 0:01:31.3]} 18. hxg3 {[%clk 0:00:12.1]}
18... Nxg3 {[%clk 0:01:30.1]} 19. f4 {[%clk 0:00:09.2]} 19... Nxe2+ {[%clk
0:01:26.3]} 20. Kh1 {[%clk 0:00:02.4]} 20... Qg2# {[%clk 0:01:26.8]} 0-1

[Event "*** Titled Tuesday Blitz"]
[Site "Chess.com"]
[Date "2021.04.27"]
[Round "9"]
[White "scandalgod"]
[Black "ybruned"]
[Result "1-0"]
[WhiteElo "2595"]
[BlackElo "2387"]
[TimeControl "180+1"]
[EndTime "11:41:54 PDT"]
[Termination "scandalgod won by resignation"]

1. d4 {[%clk 0:02:56.2]} 1... b6 {[%clk 0:02:59.1]} 2. e4 {[%clk 0:02:55.4]}
2... Bb7 {[%clk 0:02:59]} 3. Bd3 {[%clk 0:02:54.9]} 3... e6 {[%clk 0:02:59.3]}
4. Nf3 {[%clk 0:02:54]} 4... d5 {[%clk 0:02:59.2]} 5. Qe2 {[%clk 0:02:53.4]}
5... c5 {[%clk 0:02:58.9]} 6. exd5 {[%clk 0:02:26.8]} 6... Qxd5 {[%clk 0:02:50]}
7. Nc3 {[%clk 0:02:23.5]} 7... Qd8 {[%clk 0:02:49.4]} 8. Bb5+ {[%clk 0:02:20.2]}
8... Bc6 {[%clk 0:02:22.5]} 9. d5 {[%clk 0:02:17.7]} 9... Bxb5 {[%clk
0:02:16.1]} 10. Qxb5+ {[%clk 0:02:18.6]} 10... Qd7 {[%clk 0:02:13.5]} 11. dxe6
{[%clk 0:02:04.6]} 11... fxe6 {[%clk 0:02:07.3]} 12. O-O {[%clk 0:02:04.5]}
12... Qxb5 {[%clk 0:00:59]} 13. Nxb5 {[%clk 0:02:03.4]} 13... Na6 {[%clk
0:00:59.7]} 14. Re1 {[%clk 0:02:02.2]} 14... O-O-O {[%clk 0:00:49]} 15. Bg5
{[%clk 0:01:59.7]} 15... Be7 {[%clk 0:00:41.3]} 16. Rxe6 {[%clk 0:01:56.1]}
16... Bxg5 {[%clk 0:00:22.6]} 17. Nxg5 {[%clk 0:01:55.3]} 17... Nh6 {[%clk
0:00:23.5]} 18. Nxa7+ {[%clk 0:01:47.7]} 18... Kb7 {[%clk 0:00:21.7]} 19. Re7+
{[%clk 0:01:47.1]} 19... Nc7 {[%clk 0:00:20.5]} 20. Nb5 {[%clk 0:01:46.8]} 20...
Rc8 {[%clk 0:00:21.2]} 21. Ne6 {[%clk 0:01:45.4]} 21... Nf5 {[%clk 0:00:15.3]}
22. Rxc7+ {[%clk 0:01:45]} 22... Rxc7 {[%clk 0:00:14.8]} 23. Nbxc7 {[%clk
0:01:45.4]} 23... Nd4 {[%clk 0:00:14.2]} 24. Nxd4 {[%clk 0:01:43.3]} 24... Kxc7
{[%clk 0:00:13.5]} 25. Nf3 {[%clk 0:01:41.8]} 25... Kc6 {[%clk 0:00:12.2]} 26.
Re1 {[%clk 0:01:42.3]} 26... Ra8 {[%clk 0:00:11.7]} 27. a3 {[%clk 0:01:42.2]}
27... b5 {[%clk 0:00:12.2]} 28. Kf1 {[%clk 0:01:42.4]} 28... b4 {[%clk
0:00:12.6]} 29. axb4 {[%clk 0:01:41.6]} 29... cxb4 {[%clk 0:00:13.5]} 30. c3
{[%clk 0:01:41]} 30... b3 {[%clk 0:00:12.6]} 31. Nd4+ {[%clk 0:01:40.3]} 31...
Kc5 {[%clk 0:00:13.3]} 32. Nxb3+ {[%clk 0:01:40.9]} 32... Kc4 {[%clk 0:00:14.2]}
33. Nd2+ {[%clk 0:01:40.9]} 33... Kd3 {[%clk 0:00:14.9]} 34. Nf3 {[%clk
0:01:37]} 34... Ra2 {[%clk 0:00:14.8]} 35. Rd1+ {[%clk 0:01:36.2]} 35... Kc2
{[%clk 0:00:11.9]} 36. Rd2+ {[%clk 0:01:36.4]} 36... Kb3 {[%clk 0:00:12.5]} 37.
Ke2 {[%clk 0:01:36.7]} 1-0

[Event "*** Titled Tuesday Blitz"]
[Site "Chess.com"]
[Date "2021.04.27"]
[Round "9"]
[White "dodorox"]
[Black "tteshan"]
[Result "0-1"]
[WhiteElo "2123"]
[BlackElo "2244"]
[TimeControl "180+1"]
[EndTime "11:41:55 PDT"]
[Termination "tteshan won on time"]

1. d4 {[%clk 0:03:00.9]} 1... d5 {[%clk 0:02:59.4]} 2. c4 {[%clk 0:03:00.6]}
2... dxc4 {[%clk 0:03:00.3]} 3. Nc3 {[%clk 0:02:58.1]} 3... a6 {[%clk
0:02:58.7]} 4. a4 {[%clk 0:02:51.3]} 4... Nc6 {[%clk 0:02:58.5]} 5. e3 {[%clk
0:02:49.1]} 5... Na5 {[%clk 0:02:58.5]} 6. Nf3 {[%clk 0:02:31.6]} 6... Nf6
{[%clk 0:02:58.2]} 7. Ne5 {[%clk 0:02:25.6]} 7... Be6 {[%clk 0:02:58.5]} 8. Be2
{[%clk 0:02:09.5]} 8... g6 {[%clk 0:02:57.9]} 9. O-O {[%clk 0:02:07.5]} 9... Bg7
{[%clk 0:02:58]} 10. Bd2 {[%clk 0:01:59.6]} 10... O-O {[%clk 0:02:54.7]} 11. Qc2
{[%clk 0:01:51.8]} 11... c6 {[%clk 0:02:33.7]} 12. Rfd1 {[%clk 0:01:27.1]} 12...
Nd7 {[%clk 0:02:31.2]} 13. Nxd7 {[%clk 0:01:14.2]} 13... Qxd7 {[%clk 0:02:29.2]}
14. Ne4 {[%clk 0:01:02.1]} 14... Nb3 {[%clk 0:02:12.6]} 15. Ra3 {[%clk
0:00:56.8]} 15... b5 {[%clk 0:02:04.8]} 16. Bf3 {[%clk 0:00:29.3]} 16... Bf5
{[%clk 0:01:51.4]} 17. Bb4 {[%clk 0:00:14]} 17... a5 {[%clk 0:01:43.6]} 18. Bc5
{[%clk 0:00:12.4]} 18... Nxc5 {[%clk 0:01:39.8]} 19. dxc5 {[%clk 0:00:11.2]}
19... Qe6 {[%clk 0:01:35.7]} 20. axb5 {[%clk 0:00:10]} 20... cxb5 {[%clk
0:01:33.2]} 21. Rda1 {[%clk 0:00:10.1]} 21... Rfd8 {[%clk 0:01:29.3]} 22. h3
{[%clk 0:00:09.1]} 22... a4 {[%clk 0:01:26]} 23. Rc1 {[%clk 0:00:02.7]} 23...
Rac8 {[%clk 0:01:23.3]} 24. Raa1 {[%clk 0:00:01.5]} 24... Bxe4 {[%clk
0:01:22.7]} 25. Bxe4 {[%clk 0:00:01.1]} 25... Rxc5 {[%clk 0:01:22.1]} 26. Rd1
{[%clk 0:00:01.7]} 26... Rcc8 {[%clk 0:01:21.2]} 0-1